[Event "Early-Titled-Tuesday-Blitz-March-19-2024"]
[Site "Chess.com"]
[Date "2024.03.19"]
[Round "1"]
[White "DonkyDonkyDonkey"]
[Black "noblerone"]
[Result "1-0"]
[WhiteElo "2969"]
[BlackElo "2535"]
[TimeControl "180+1"]
[EndTime "8:05:48 PDT"]
[Termination "DonkyDonkyDonkey won on time"]

1. e4 {[%clk 0:03:00.9]} 1... c5 {[%clk 0:02:59.4]} 2. Nc3 {[%clk 0:03:01.1]}
2... e6 {[%clk 0:02:58.2]} 3. f4 {[%clk 0:03:01.2]} 3... Nc6 {[%clk 0:02:58.3]}
4. Nf3 {[%clk 0:03:01.5]} 4... Nf6 {[%clk 0:02:56.4]} 5. e5 {[%clk 0:03:01.4]}
5... Ng4 {[%clk 0:02:55.4]} 6. Bb5 {[%clk 0:02:59.5]} 6... Qc7 {[%clk
0:02:36.4]} 7. O-O {[%clk 0:02:57.6]} 7... h5 {[%clk 0:02:35]} 8. Ne4 {[%clk
0:02:51.5]} 8... d5 {[%clk 0:02:31.1]} 9. exd6 {[%clk 0:02:50]} 9... Bxd6 {[%clk
0:02:31.5]} 10. Nxd6+ {[%clk 0:02:43.6]} 10... Qxd6 {[%clk 0:02:32.4]} 11. d3
{[%clk 0:02:44.1]} 11... Bd7 {[%clk 0:02:30.7]} 12. h3 {[%clk 0:02:40.8]} 12...
O-O-O {[%clk 0:01:56.4]} 13. Qe1 {[%clk 0:02:40.1]} 13... Nf6 {[%clk 0:01:46.3]}
14. Be3 {[%clk 0:02:35.9]} 14... Nd4 {[%clk 0:01:43.5]} 15. Bxd7+ {[%clk
0:02:35.7]} 15... Rxd7 {[%clk 0:01:42.2]} 16. Bxd4 {[%clk 0:02:21.5]} 16... cxd4
{[%clk 0:01:42.3]} 17. Ne5 {[%clk 0:02:21.1]} 17... Rc7 {[%clk 0:01:42.3]} 18.
Nc4 {[%clk 0:02:21.2]} 18... Qd5 {[%clk 0:01:36.3]} 19. a4 {[%clk 0:02:21.3]}
19... h4 {[%clk 0:01:33.3]} 20. b4 {[%clk 0:02:16]} 20... Kb8 {[%clk 0:01:03.2]}
21. b5 {[%clk 0:02:14.5]} 21... Qd8 {[%clk 0:00:28.3]} 22. a5 {[%clk 0:02:10.9]}
22... Nd5 {[%clk 0:00:25.6]} 23. b6 {[%clk 0:02:11.1]} 23... Rc6 {[%clk
0:00:22.2]} 24. bxa7+ {[%clk 0:02:08.1]} 24... Kxa7 {[%clk 0:00:21.3]} 25. Qf2
{[%clk 0:01:59.8]} 25... Ne7 {[%clk 0:00:15.8]} 26. Ne5 {[%clk 0:01:59.3]} 26...
Nf5 {[%clk 0:00:11.1]} 27. Nxc6+ {[%clk 0:01:57.8]} 27... bxc6 {[%clk 0:00:12]}
28. Rfb1 {[%clk 0:01:57.6]} 28... Qd5 {[%clk 0:00:09.6]} 29. a6 {[%clk
0:01:55.6]} 29... Rh6 {[%clk 0:00:08.5]} 30. Rb7+ {[%clk 0:01:55.3]} 30... Ka8
{[%clk 0:00:09.1]} 31. c4 {[%clk 0:01:39.5]} 31... Qd6 {[%clk 0:00:06.8]} 32.
Rab1 {[%clk 0:01:38.5]} 32... Rg6 {[%clk 0:00:06.6]} 33. Qb2 {[%clk 0:01:36.7]}
1-0

[Event "Early-Titled-Tuesday-Blitz-March-19-2024"]
[Site "Chess.com"]
[Date "2024.03.19"]
[Round "1"]
[White "Byniolus"]
[Black "vladoboch"]
[Result "1-0"]
[WhiteElo "2818"]
[BlackElo "2447"]
[TimeControl "180+1"]
[EndTime "8:05:49 PDT"]
[Termination "Byniolus won by resignation"]

1. d4 {[%clk 0:03:00.9]} 1... d5 {[%clk 0:02:58.9]} 2. Nf3 {[%clk 0:03:00.3]}
2... Nf6 {[%clk 0:02:58.6]} 3. Bf4 {[%clk 0:03:00.6]} 3... c5 {[%clk 0:02:57.6]}
4. c3 {[%clk 0:03:01.2]} 4... Nc6 {[%clk 0:02:56.2]} 5. Nbd2 {[%clk 0:03:01.7]}
5... Bf5 {[%clk 0:02:53.2]} 6. Qb3 {[%clk 0:02:59.4]} 6... Qb6 {[%clk 0:02:47]}
7. dxc5 {[%clk 0:02:59.2]} 7... Qxb3 {[%clk 0:02:37.9]} 8. axb3 {[%clk
0:03:00.1]} 8... Nd7 {[%clk 0:02:28.9]} 9. b4 {[%clk 0:02:58]} 9... e5 {[%clk
0:02:24.3]} 10. Bg3 {[%clk 0:02:58.5]} 10... e4 {[%clk 0:02:15.5]} 11. Nd4
{[%clk 0:02:55.4]} 11... Nxd4 {[%clk 0:01:56.1]} 12. cxd4 {[%clk 0:02:56.3]}
12... h5 {[%clk 0:01:47]} 13. h4 {[%clk 0:02:46.7]} 13... Be7 {[%clk 0:01:17.7]}
14. e3 {[%clk 0:02:44.8]} 14... O-O {[%clk 0:01:18.3]} 15. Be2 {[%clk
0:02:43.9]} 15... a6 {[%clk 0:01:18.6]} 16. Bxh5 {[%clk 0:02:42.4]} 16... Nb8
{[%clk 0:01:01.7]} 17. b5 {[%clk 0:02:32.6]} 17... a5 {[%clk 0:00:57.2]} 18. O-O
{[%clk 0:02:26.4]} 18... Nd7 {[%clk 0:00:47.8]} 19. Bd1 {[%clk 0:02:15.3]} 19...
Rfc8 {[%clk 0:00:40.8]} 20. Bb3 {[%clk 0:02:10.9]} 20... Nf6 {[%clk 0:00:40.4]}
21. Nb1 {[%clk 0:02:08.8]} 21... Be6 {[%clk 0:00:27.3]} 22. Nc3 {[%clk
0:02:07.5]} 22... Kf8 {[%clk 0:00:18.9]} 23. Be5 {[%clk 0:01:59.4]} 23... Rd8
{[%clk 0:00:15.7]} 24. b6 {[%clk 0:01:45.3]} 24... Ng4 {[%clk 0:00:12.1]} 25.
Bg3 {[%clk 0:01:45.4]} 25... Nf6 {[%clk 0:00:12]} 26. Ra2 {[%clk 0:01:42.5]}
26... Nh5 {[%clk 0:00:08.6]} 27. Bc7 {[%clk 0:01:37]} 27... Rd7 {[%clk
0:00:06.9]} 28. g3 {[%clk 0:01:32.6]} 28... Bh3 {[%clk 0:00:04]} 29. Rfa1 {[%clk
0:01:31.3]} 29... Bd8 {[%clk 0:00:04.6]} 1-0

[Event "Early-Titled-Tuesday-Blitz-March-19-2024"]
[Site "Chess.com"]
[Date "2024.03.19"]
[Round "1"]
[White "MetiForce"]
[Black "Chess_Gainz"]
[Result "1-0"]
[WhiteElo "2921"]
[BlackElo "2518"]
[TimeControl "180+1"]
[EndTime "8:05:50 PDT"]
[Termination "MetiForce won by resignation"]

1. c4 {[%clk 0:02:56.4]} 1... e5 {[%clk 0:02:59.2]} 2. Nc3 {[%clk 0:02:56.4]}
2... d6 {[%clk 0:02:59]} 3. e3 {[%clk 0:02:54.9]} 3... f5 {[%clk 0:02:58.7]} 4.
d4 {[%clk 0:02:55.1]} 4... Be7 {[%clk 0:02:58.7]} 5. g3 {[%clk 0:02:43.2]} 5...
Nf6 {[%clk 0:02:57.7]} 6. Nf3 {[%clk 0:02:43.2]} 6... e4 {[%clk 0:02:55.2]} 7.
Nh4 {[%clk 0:02:43.5]} 7... O-O {[%clk 0:02:49.7]} 8. Ng2 {[%clk 0:02:43.7]}
8... c6 {[%clk 0:02:45.1]} 9. h4 {[%clk 0:02:43.9]} 9... Na6 {[%clk 0:02:43.1]}
10. Nf4 {[%clk 0:02:43.3]} 10... Nc7 {[%clk 0:02:40.4]} 11. Be2 {[%clk
0:02:43.2]} 11... Ne6 {[%clk 0:02:34.3]} 12. Qb3 {[%clk 0:02:38.8]} 12... a6
{[%clk 0:02:08.3]} 13. a4 {[%clk 0:02:21.8]} 13... Rb8 {[%clk 0:01:52.6]} 14. d5
{[%clk 0:02:18]} 14... Nxf4 {[%clk 0:01:42.6]} 15. exf4 {[%clk 0:02:18.9]} 15...
Nd7 {[%clk 0:01:43.2]} 16. Be3 {[%clk 0:02:15.3]} 16... Bf6 {[%clk 0:01:33.3]}
17. a5 {[%clk 0:01:50.3]} 17... Qc7 {[%clk 0:01:16.9]} 18. O-O {[%clk
0:01:30.7]} 18... Nc5 {[%clk 0:01:08.2]} 19. Qa3 {[%clk 0:01:30.7]} 19... Bxc3
{[%clk 0:00:59.7]} 20. Qxc3 {[%clk 0:01:29.6]} 20... cxd5 {[%clk 0:00:59.9]} 21.
cxd5 {[%clk 0:01:30.5]} 21... Qd8 {[%clk 0:00:41.3]} 22. b4 {[%clk 0:01:28.7]}
22... Nd7 {[%clk 0:00:41.5]} 23. Ba7 {[%clk 0:01:24.7]} 23... Ra8 {[%clk
0:00:40.9]} 24. Bd4 {[%clk 0:01:25.3]} 24... Nf6 {[%clk 0:00:38.8]} 25. Rac1
{[%clk 0:01:25.8]} 25... Rf7 {[%clk 0:00:32.9]} 26. Rfd1 {[%clk 0:01:18.6]}
26... Nxd5 {[%clk 0:00:26.8]} 27. Qb3 {[%clk 0:01:18.6]} 27... Be6 {[%clk
0:00:27.4]} 28. Bc4 {[%clk 0:01:18.7]} 28... Nxf4 {[%clk 0:00:18.1]} 29. Bxe6
{[%clk 0:01:18]} 29... Nxe6 {[%clk 0:00:18.1]} 30. Qxe6 {[%clk 0:01:18.9]} 1-0

[Event "Early-Titled-Tuesday-Blitz-March-19-2024"]
[Site "Chess.com"]
[Date "2024.03.19"]
[Round "1"]
[White "leandrojimenez"]
[Black "Gabix_94"]
[Result "0-1"]
[WhiteElo "2418"]
[BlackElo "2774"]
[TimeControl "180+1"]
[EndTime "8:05:53 PDT"]
[Termination "Gabix_94 won on time"]

1. d4 {[%clk 0:02:56.4]} 1... Nf6 {[%clk 0:02:57.9]} 2. c4 {[%clk 0:02:56.2]}
2... g6 {[%clk 0:02:58.4]} 3. Nc3 {[%clk 0:02:55.7]} 3... Bg7 {[%clk 0:02:59]}
4. e4 {[%clk 0:02:56.3]} 4... d6 {[%clk 0:02:59.6]} 5. f3 {[%clk 0:02:57]} 5...
O-O {[%clk 0:03:00]} 6. Be3 {[%clk 0:02:57.7]} 6... Nc6 {[%clk 0:03:00.5]} 7.
Nge2 {[%clk 0:02:58.1]} 7... a6 {[%clk 0:03:00.6]} 8. Qd2 {[%clk 0:02:57.5]}
8... Na5 {[%clk 0:03:00.5]} 9. Nc1 {[%clk 0:02:47]} 9... Nd7 {[%clk 0:02:56.9]}
10. b4 {[%clk 0:02:43.1]} 10... Nc6 {[%clk 0:02:55.5]} 11. Nb3 {[%clk 0:02:43]}
11... Nxb4 {[%clk 0:02:53.6]} 12. a4 {[%clk 0:02:34]} 12... a5 {[%clk
0:02:49.5]} 13. Be2 {[%clk 0:02:32.1]} 13... e5 {[%clk 0:02:47.2]} 14. d5 {[%clk
0:02:31.3]} 14... b6 {[%clk 0:02:46.1]} 15. O-O {[%clk 0:02:27.5]} 15... Nc5
{[%clk 0:02:38.9]} 16. Nxc5 {[%clk 0:02:19.9]} 16... bxc5 {[%clk 0:02:39.8]} 17.
Nb5 {[%clk 0:02:19.7]} 17... Bd7 {[%clk 0:02:35.9]} 18. Rab1 {[%clk 0:01:59.6]}
18... f5 {[%clk 0:02:33.8]} 19. Bg5 {[%clk 0:01:58]} 19... Qc8 {[%clk 0:02:31]}
20. Bh6 {[%clk 0:01:51.2]} 20... Bxb5 {[%clk 0:02:25.8]} 21. axb5 {[%clk
0:01:41.8]} 21... Bxh6 {[%clk 0:02:23.8]} 22. Qxh6 {[%clk 0:01:41.1]} 22... a4
{[%clk 0:02:24.4]} 23. f4 {[%clk 0:01:20.9]} 23... a3 {[%clk 0:02:18.4]} 24.
fxe5 {[%clk 0:01:20.8]} 24... a2 {[%clk 0:02:18.9]} 25. Rbc1 {[%clk 0:01:17.1]}
25... fxe4 {[%clk 0:02:14.2]} 26. Ra1 {[%clk 0:00:16.3]} 26... Rxf1+ {[%clk
0:02:12.5]} 27. Bxf1 {[%clk 0:00:15.8]} 27... dxe5 {[%clk 0:02:06.3]} 28. Qd2
{[%clk 0:00:14.1]} 28... Qf5 {[%clk 0:02:04.7]} 29. d6 {[%clk 0:00:13.8]} 29...
cxd6 {[%clk 0:01:58.1]} 30. b6 {[%clk 0:00:13]} 30... Qd7 {[%clk 0:01:50]} 31.
g3 {[%clk 0:00:06.1]} 31... Kg7 {[%clk 0:01:50]} 32. Bg2 {[%clk 0:00:06]} 32...
Qc6 {[%clk 0:01:48.9]} 33. Qe2 {[%clk 0:00:05.6]} 33... Qxb6 {[%clk 0:01:47.8]}
34. Bxe4 {[%clk 0:00:05.8]} 34... Ra7 {[%clk 0:01:47]} 35. Qf2 {[%clk
0:00:04.2]} 35... Rf7 {[%clk 0:01:45.3]} 36. Qd2 {[%clk 0:00:03.5]} 36... Qa5
{[%clk 0:01:44.4]} 37. Qc3 {[%clk 0:00:02.6]} 37... Qa4 {[%clk 0:01:40.8]} 38.
Qc2 {[%clk 0:00:01.6]} 38... Nxc2 {[%clk 0:01:39.8]} 0-1

[Event "Early-Titled-Tuesday-Blitz-March-19-2024"]
[Site "Chess.com"]
[Date "2024.03.19"]
[Round "1"]
[White "GiorgianBarbosa"]
[Black "Firouzja2003"]
[Result "0-1"]
[WhiteElo "2567"]
[BlackElo "3080"]
[TimeControl "180+1"]
[EndTime "8:05:54 PDT"]
[Termination "Firouzja2003 won on time"]

1. c4 {[%clk 0:02:59.6]} 1... Nf6 {[%clk 0:03:00]} 2. g3 {[%clk 0:03:00.5]} 2...
g6 {[%clk 0:03:00.8]} 3. Bg2 {[%clk 0:03:01]} 3... Bg7 {[%clk 0:03:01.6]} 4. Nc3
{[%clk 0:03:01.6]} 4... O-O {[%clk 0:03:02.2]} 5. e4 {[%clk 0:03:01.6]} 5... d6
{[%clk 0:03:00.4]} 6. Nge2 {[%clk 0:03:02.1]} 6... c5 {[%clk 0:02:59.5]} 7. O-O
{[%clk 0:03:02.5]} 7... Nc6 {[%clk 0:02:59.8]} 8. d3 {[%clk 0:03:01.1]} 8... a6
{[%clk 0:03:00.3]} 9. h3 {[%clk 0:02:59.3]} 9... Rb8 {[%clk 0:03:00.7]} 10. Be3
{[%clk 0:02:58.5]} 10... b5 {[%clk 0:03:00]} 11. b3 {[%clk 0:02:58.3]} 11... e6
{[%clk 0:02:56.1]} 12. Rc1 {[%clk 0:02:52]} 12... Nd7 {[%clk 0:02:51]} 13. cxb5
{[%clk 0:02:42.5]} 13... axb5 {[%clk 0:02:51.2]} 14. d4 {[%clk 0:02:43.4]} 14...
Ba6 {[%clk 0:02:44.5]} 15. dxc5 {[%clk 0:02:31.4]} 15... Nxc5 {[%clk 0:02:31.2]}
16. b4 {[%clk 0:01:49.3]} 16... Nxb4 {[%clk 0:02:28.1]} 17. Nd4 {[%clk
0:01:47.8]} 17... Qd7 {[%clk 0:02:18.3]} 18. a3 {[%clk 0:01:44]} 18... Nbd3
{[%clk 0:02:16.5]} 19. Rc2 {[%clk 0:01:36.5]} 19... b4 {[%clk 0:02:16.5]} 20.
axb4 {[%clk 0:01:32.1]} 20... Nxb4 {[%clk 0:02:17.4]} 21. Rd2 {[%clk 0:01:25.5]}
21... Bxf1 {[%clk 0:02:16.7]} 22. Bxf1 {[%clk 0:01:24.4]} 22... d5 {[%clk
0:02:09.9]} 23. Ndb5 {[%clk 0:01:03.2]} 23... Nxe4 {[%clk 0:01:49]} 24. Nxe4
{[%clk 0:00:58.4]} 24... Rxb5 {[%clk 0:01:49.6]} 25. Nc5 {[%clk 0:00:55.8]}
25... Qc6 {[%clk 0:01:48.8]} 26. Bxb5 {[%clk 0:00:36.3]} 26... Qxb5 {[%clk
0:01:49.7]} 27. Nd3 {[%clk 0:00:21.5]} 27... d4 {[%clk 0:01:45.3]} 28. Bf4
{[%clk 0:00:16.1]} 28... e5 {[%clk 0:01:45.4]} 29. Bg5 {[%clk 0:00:09.5]} 29...
Nd5 {[%clk 0:01:43.1]} 30. Kg2 {[%clk 0:00:05.7]} 30... Nc3 {[%clk 0:01:42.9]}
31. Qe1 {[%clk 0:00:04.5]} 31... e4 {[%clk 0:01:43.4]} 32. Nf4 {[%clk
0:00:04.3]} 32... Qxg5 {[%clk 0:01:43.6]} 33. h4 {[%clk 0:00:03.1]} 33... Qg4
{[%clk 0:01:43.6]} 34. Qd1 {[%clk 0:00:02.7]} 34... Nxd1 {[%clk 0:01:43]} 35.
Rxd4 {[%clk 0:00:01.4]} 35... Qf3+ {[%clk 0:01:42.9]} 36. Kh3 {[%clk 0:00:01.1]}
36... Nxf2+ {[%clk 0:01:42.7]} 0-1

[Event "Early-Titled-Tuesday-Blitz-March-19-2024"]
[Site "Chess.com"]
[Date "2024.03.19"]
[Round "1"]
[White "tptagain"]
[Black "zubridis"]
[Result "1-0"]
[WhiteElo "2960"]
[BlackElo "2533"]
[TimeControl "180+1"]
[EndTime "8:05:56 PDT"]
[Termination "tptagain won on time"]

1. Nf3 {[%clk 0:03:00.9]} 1... c5 {[%clk 0:02:59]} 2. e3 {[%clk 0:03:00.7]} 2...
g6 {[%clk 0:02:57.8]} 3. d4 {[%clk 0:03:00.9]} 3... Bg7 {[%clk 0:02:58.3]} 4. a3
{[%clk 0:03:00.9]} 4... cxd4 {[%clk 0:02:55.6]} 5. exd4 {[%clk 0:03:01.2]} 5...
Nf6 {[%clk 0:02:55.1]} 6. h3 {[%clk 0:02:58.6]} 6... O-O {[%clk 0:02:54.5]} 7.
Bd3 {[%clk 0:02:52.7]} 7... d5 {[%clk 0:02:53.9]} 8. O-O {[%clk 0:02:52.9]} 8...
Nc6 {[%clk 0:02:54.3]} 9. Bg5 {[%clk 0:02:50.6]} 9... Ne4 {[%clk 0:02:51.8]} 10.
Be3 {[%clk 0:02:50.3]} 10... Qb6 {[%clk 0:02:42.5]} 11. Nc3 {[%clk 0:02:46.3]}
11... Nxc3 {[%clk 0:02:34.7]} 12. bxc3 {[%clk 0:02:47.2]} 12... Qc7 {[%clk
0:02:13.7]} 13. Re1 {[%clk 0:02:43.4]} 13... Re8 {[%clk 0:02:09.2]} 14. Qd2
{[%clk 0:02:36.8]} 14... Bd7 {[%clk 0:02:02.8]} 15. Bh6 {[%clk 0:02:28.9]} 15...
Bh8 {[%clk 0:02:00.2]} 16. Rab1 {[%clk 0:02:19]} 16... Rac8 {[%clk 0:01:58.4]}
17. Bf4 {[%clk 0:02:18.6]} 17... e5 {[%clk 0:01:27.3]} 18. Bg3 {[%clk
0:02:16.9]} 18... b6 {[%clk 0:01:17.4]} 19. Ba6 {[%clk 0:02:09.8]} 19... Rcd8
{[%clk 0:01:15]} 20. Bb5 {[%clk 0:02:01.3]} 20... Na5 {[%clk 0:00:45.1]} 21.
Nxe5 {[%clk 0:01:16.8]} 21... Bxb5 {[%clk 0:00:34.2]} 22. Nxg6 {[%clk
0:01:13.9]} 22... Qd7 {[%clk 0:00:07.8]} 23. Nxh8 {[%clk 0:01:10.2]} 1-0

[Event "Early-Titled-Tuesday-Blitz-March-19-2024"]
[Site "Chess.com"]
[Date "2024.03.19"]
[Round "1"]
[White "Yushko_Olga"]
[Black "only_strong_moves"]
[Result "0-1"]
[WhiteElo "2214"]
[BlackElo "2614"]
[TimeControl "180+1"]
[EndTime "8:05:58 PDT"]
[Termination "only_strong_moves won by resignation"]

1. d4 {[%clk 0:02:57.1]} 1... d5 {[%clk 0:02:57.9]} 2. c4 {[%clk 0:02:57]} 2...
dxc4 {[%clk 0:02:58.3]} 3. e3 {[%clk 0:02:55.9]} 3... Nf6 {[%clk 0:02:56.6]} 4.
Bxc4 {[%clk 0:02:52.6]} 4... e6 {[%clk 0:02:56.4]} 5. Nf3 {[%clk 0:02:47.2]}
5... c5 {[%clk 0:02:55.5]} 6. O-O {[%clk 0:02:37.2]} 6... a6 {[%clk 0:02:55]} 7.
dxc5 {[%clk 0:02:35.2]} 7... Qxd1 {[%clk 0:02:53.3]} 8. Rxd1 {[%clk 0:02:33.3]}
8... Bxc5 {[%clk 0:02:53]} 9. Bb3 {[%clk 0:02:33.5]} 9... Nc6 {[%clk 0:02:52]}
10. Nc3 {[%clk 0:02:27.7]} 10... Bd7 {[%clk 0:02:50.3]} 11. Nd4 {[%clk
0:02:23.2]} 11... O-O-O {[%clk 0:02:49.3]} 12. Bc2 {[%clk 0:02:20.8]} 12... Ba7
{[%clk 0:02:45.7]} 13. Nce2 {[%clk 0:02:11.6]} 13... e5 {[%clk 0:02:42.8]} 14.
Nxc6 {[%clk 0:02:01.9]} 14... Bxc6 {[%clk 0:02:43.7]} 15. Bd2 {[%clk 0:02:00.1]}
15... Ne4 {[%clk 0:02:30.6]} 16. Ba5 {[%clk 0:01:54.8]} 16... b6 {[%clk
0:02:25.9]} 17. Bb4 {[%clk 0:01:54.8]} 17... a5 {[%clk 0:02:23.5]} 18. Bxe4
{[%clk 0:01:51]} 18... Bxe4 {[%clk 0:02:23.4]} 19. Rac1+ {[%clk 0:01:49.9]}
19... Kb7 {[%clk 0:02:21.5]} 20. Bd6 {[%clk 0:01:49.8]} 20... f6 {[%clk
0:02:07.7]} 21. Rc7+ {[%clk 0:01:17.2]} 21... Ka8 {[%clk 0:02:07.7]} 22. Nc3
{[%clk 0:01:17.6]} 22... Bc2 {[%clk 0:01:56.1]} 23. Nb5 {[%clk 0:01:11.2]} 23...
Bb8 {[%clk 0:01:51.8]} 24. Rc1 {[%clk 0:01:03]} 24... Bxc7 {[%clk 0:01:42]} 25.
Nxc7+ {[%clk 0:00:57.8]} 25... Kb7 {[%clk 0:01:41.3]} 26. Nb5 {[%clk 0:00:36.6]}
26... Rc8 {[%clk 0:01:33.4]} 27. h4 {[%clk 0:00:35.2]} 27... Bd3 {[%clk
0:01:29.4]} 28. Nc3 {[%clk 0:00:34.6]} 28... Rhd8 {[%clk 0:01:25.9]} 29. Be7
{[%clk 0:00:31.1]} 29... Rd7 {[%clk 0:01:25.2]} 30. Ba3 {[%clk 0:00:30.9]} 30...
b5 {[%clk 0:01:25.8]} 31. b4 {[%clk 0:00:31]} 31... Rc4 {[%clk 0:01:24.1]} 32.
Bb2 {[%clk 0:00:21.4]} 32... Rdc7 {[%clk 0:01:21.9]} 0-1

[Event "Early-Titled-Tuesday-Blitz-March-19-2024"]
[Site "Chess.com"]
[Date "2024.03.19"]
[Round "1"]
[White "TimGrutter03"]
[Black "Njal28"]
[Result "0-1"]
[WhiteElo "2564"]
[BlackElo "3071"]
[TimeControl "180+1"]
[EndTime "8:05:59 PDT"]
[Termination "Njal28 won by resignation"]

1. e4 {[%clk 0:03:00.9]} 1... e5 {[%clk 0:02:56.5]} 2. Nf3 {[%clk 0:03:01]} 2...
Nc6 {[%clk 0:02:56.2]} 3. Bc4 {[%clk 0:02:59.4]} 3... Bc5 {[%clk 0:02:55.6]} 4.
d4 {[%clk 0:02:57.7]} 4... Bxd4 {[%clk 0:02:46.6]} 5. c3 {[%clk 0:02:41.9]} 5...
Bb6 {[%clk 0:02:45.2]} 6. b4 {[%clk 0:02:27]} 6... Nf6 {[%clk 0:02:37.4]} 7. a4
{[%clk 0:02:26.4]} 7... a6 {[%clk 0:02:32]} 8. O-O {[%clk 0:02:21]} 8... O-O
{[%clk 0:02:31.3]} 9. Re1 {[%clk 0:02:19]} 9... d6 {[%clk 0:02:28.7]} 10. Bg5
{[%clk 0:02:12]} 10... h6 {[%clk 0:02:27.3]} 11. Bh4 {[%clk 0:02:10]} 11... g5
{[%clk 0:02:16.4]} 12. Nxg5 {[%clk 0:02:01.5]} 12... hxg5 {[%clk 0:02:17.3]} 13.
Bxg5 {[%clk 0:02:02.2]} 13... Kg7 {[%clk 0:02:12.1]} 14. Qf3 {[%clk 0:01:57.6]}
14... Kg6 {[%clk 0:02:08.2]} 15. h4 {[%clk 0:01:51.8]} 15... Bg4 {[%clk
0:02:08.4]} 16. Qg3 {[%clk 0:01:48]} 16... Qd7 {[%clk 0:02:02.4]} 17. Be2 {[%clk
0:01:13.4]} 17... Bxe2 {[%clk 0:01:58.4]} 18. Bxf6+ {[%clk 0:00:51.3]} 18... Qg4
{[%clk 0:01:58.2]} 19. Qxg4+ {[%clk 0:00:33.3]} 19... Bxg4 {[%clk 0:01:59.1]}
20. Bg5 {[%clk 0:00:34]} 20... f5 {[%clk 0:01:54.4]} 21. exf5+ {[%clk
0:00:34.1]} 21... Rxf5 {[%clk 0:01:53.1]} 22. Be3 {[%clk 0:00:35]} 22... Bxe3
{[%clk 0:01:33.5]} 23. Rxe3 {[%clk 0:00:35.9]} 23... Rf4 {[%clk 0:01:30.1]} 24.
Nd2 {[%clk 0:00:28.6]} 24... Raf8 {[%clk 0:01:27.2]} 25. f3 {[%clk 0:00:27.3]}
25... Be6 {[%clk 0:01:26.3]} 26. g3 {[%clk 0:00:23.3]} 26... R4f7 {[%clk
0:01:26.5]} 27. b5 {[%clk 0:00:20.1]} 27... axb5 {[%clk 0:01:25.6]} 28. axb5
{[%clk 0:00:21]} 28... Ne7 {[%clk 0:01:26.4]} 29. g4 {[%clk 0:00:15.5]} 29...
Nd5 {[%clk 0:01:26.2]} 30. Ree1 {[%clk 0:00:14.2]} 30... Nxc3 {[%clk 0:01:21]}
31. h5+ {[%clk 0:00:11.5]} 31... Kh6 {[%clk 0:01:21.2]} 32. Kg2 {[%clk
0:00:11.4]} 32... Nxb5 {[%clk 0:01:21.2]} 33. Rh1 {[%clk 0:00:09.4]} 33... Nd4
{[%clk 0:01:21.2]} 34. Raf1 {[%clk 0:00:07.1]} 34... Bd5 {[%clk 0:01:20.3]} 0-1

[Event "Early-Titled-Tuesday-Blitz-March-19-2024"]
[Site "Chess.com"]
[Date "2024.03.19"]
[Round "1"]
[White "secretworker2027"]
[Black "RebecaJimnz"]
[Result "1-0"]
[WhiteElo "2641"]
[BlackElo "2268"]
[TimeControl "180+1"]
[EndTime "8:06:02 PDT"]
[Termination "secretworker2027 won by resignation"]

1. e4 {[%clk 0:03:00.9]} 1... c5 {[%clk 0:02:58.4]} 2. Nf3 {[%clk 0:02:58.5]}
2... Nc6 {[%clk 0:02:58.9]} 3. Nc3 {[%clk 0:02:58.3]} 3... g6 {[%clk 0:02:58.9]}
4. Bc4 {[%clk 0:02:58.2]} 4... Bg7 {[%clk 0:02:58.9]} 5. O-O {[%clk 0:02:58.9]}
5... e6 {[%clk 0:02:59.3]} 6. d4 {[%clk 0:02:58.8]} 6... cxd4 {[%clk 0:02:59]}
7. Nb5 {[%clk 0:02:58.8]} 7... d6 {[%clk 0:02:45.1]} 8. Nbxd4 {[%clk 0:02:55.1]}
8... Nge7 {[%clk 0:02:38.3]} 9. Nb5 {[%clk 0:02:54.9]} 9... d5 {[%clk
0:02:02.6]} 10. exd5 {[%clk 0:02:53.9]} 10... exd5 {[%clk 0:02:03.5]} 11. Bxd5
{[%clk 0:02:53.8]} 11... Nxd5 {[%clk 0:02:04.1]} 12. Qxd5 {[%clk 0:02:53.5]}
12... O-O {[%clk 0:02:04.8]} 13. Qxd8 {[%clk 0:02:51.9]} 13... Rxd8 {[%clk
0:02:05.1]} 14. Bg5 {[%clk 0:02:51.4]} 14... Rf8 {[%clk 0:01:52.5]} 15. c3
{[%clk 0:02:48.8]} 15... Bg4 {[%clk 0:01:35.4]} 16. Nd6 {[%clk 0:02:36.1]} 16...
Bxf3 {[%clk 0:01:26.1]} 17. gxf3 {[%clk 0:02:34.9]} 17... b6 {[%clk 0:01:24.8]}
18. Rad1 {[%clk 0:02:32.2]} 18... Ne5 {[%clk 0:01:06]} 19. Kg2 {[%clk
0:02:31.2]} 19... h6 {[%clk 0:01:01.8]} 20. Bf4 {[%clk 0:02:23]} 20... g5 {[%clk
0:01:00.5]} 21. Bxe5 {[%clk 0:02:21.7]} 21... Bxe5 {[%clk 0:01:01.4]} 22. Nf5
{[%clk 0:02:22]} 22... Kh7 {[%clk 0:00:51.5]} 23. Rd7 {[%clk 0:02:21.9]} 23...
Kg6 {[%clk 0:00:39.1]} 24. Ne7+ {[%clk 0:02:20.3]} 24... Kf6 {[%clk 0:00:39.4]}
25. Rfd1 {[%clk 0:02:20.5]} 25... Rfe8 {[%clk 0:00:26.5]} 26. Nd5+ {[%clk
0:02:12.8]} 26... Kg6 {[%clk 0:00:20.6]} 27. Rd2 {[%clk 0:02:05.8]} 27... f6
{[%clk 0:00:09.7]} 28. Nc7 {[%clk 0:02:00.5]} 28... Bxc7 {[%clk 0:00:07.2]} 29.
Rxc7 {[%clk 0:02:01.4]} 29... Re1 {[%clk 0:00:06.4]} 30. b4 {[%clk 0:01:52.5]}
30... Ra1 {[%clk 0:00:04.8]} 31. Rc6 {[%clk 0:01:50.9]} 31... Re8 {[%clk
0:00:02.1]} 32. Rdd6 {[%clk 0:01:39.7]} 32... Rxa2 {[%clk 0:00:01.5]} 33. Rxf6+
{[%clk 0:01:39.6]} 33... Kg7 {[%clk 0:00:02]} 34. Rg6+ {[%clk 0:01:39.9]} 34...
Kf7 {[%clk 0:00:01.8]} 35. Rcf6+ {[%clk 0:01:40.3]} 35... Ke7 {[%clk 0:00:02.1]}
36. Re6+ {[%clk 0:01:39.5]} 36... Kd7 {[%clk 0:00:02.6]} 37. Rxe8 {[%clk
0:01:39.7]} 37... Kxe8 {[%clk 0:00:03.5]} 38. Rxh6 {[%clk 0:01:40.3]} 38... a5
{[%clk 0:00:02.5]} 39. Rxb6 {[%clk 0:01:39.9]} 39... axb4 {[%clk 0:00:02]} 40.
cxb4 {[%clk 0:01:39.5]} 40... Kf7 {[%clk 0:00:02.7]} 41. Kg3 {[%clk 0:01:39]}
41... Rb2 {[%clk 0:00:02.2]} 42. b5 {[%clk 0:01:38.8]} 1-0